fUST/lending_fUST_20250924
["ID","MTS","AMOUNT","RATE_DAILY","PERIOD"]
[387397139,1758712245263,-480.0,0.00020273,2]
[387397140,1758712245272,-480.0,0.00020273,2]
[387397141,1758712245281,-1901.05,0.00020273,2]
[387397142,1758712245290,-480.0,0.00020273,2]
[387397143,1758712245301,-841.36,0.00020273,2]
[387397144,1758712245311,-480.0,0.00020273,2]
[387397145,1758712245320,-480.0,0.00020273,2]
[387397146,1758712245329,-974.9,0.00020273,2]
[387397147,1758712245338,-3459.54,0.00020273,2]
[387397148,1758712245347,-480.0,0.00020273,2]
[387397149,1758712245356,-480.0,0.00020273,2]
[387397150,1758712245366,-1848.29,0.00020273,2]
[387397151,1758712245375,-480.0,0.00020273,2]
[387397152,1758712245384,-480.0,0.00020273,2]
[387397153,1758712245393,-480.0,0.00020273,2]
[387397154,1758712245402,-480.0,0.00020273,2]
[387397155,1758712245411,-480.0,0.00020273,2]
[387397156,1758712245420,-592.80162402,0.00020273,2]
[387397157,1758712245429,-480.0,0.00020273,2]
[387397158,1758712245438,-480.0,0.00020273,2]
[387397159,1758712245448,-480.0,0.00020273,2]
[387397160,1758712245457,-480.0,0.00020273,2]
[387397161,1758712245466,-480.0,0.00020273,2]
[387397162,1758712245475,-480.0,0.00020273,2]
[387397163,1758712245485,-498.35,0.00020273,2]
[387397164,1758712245494,-821.99,0.00020273,2]
[387397165,1758712245503,-840.33,0.00020273,2]
[387397166,1758712245512,-815.98,0.00020273,2]
[387397167,1758712245521,-480.0,0.00020273,2]
[387397168,1758712245531,-544.68,0.00020273,2]
[387397169,1758712245540,-932.22,0.00020273,2]
[387397170,1758712245549,-480.0,0.00020273,2]
[387397171,1758712245558,-480.0,0.00020273,2]
[387397172,1758712245567,-480.0,0.00020273,2]
[387397173,1758712245576,-480.0,0.00020273,2]
[387397174,1758712245586,-480.0,0.00020273,2]
[387397175,1758712245596,-756.16,0.00020273,2]
[387397176,1758712245606,-480.0,0.00020273,2]
[387397177,1758712245617,-480.0,0.00020273,2]
[387397178,1758712245628,-480.0,0.00020273,2]
[387397179,1758712245640,-1726.74,0.00020273,2]
[387397180,1758712245650,-733.22,0.00020273,2]
[387397181,1758712245660,-480.0,0.00020273,2]
[387397182,1758712245670,-480.0,0.00020273,2]
[387397183,1758712245679,-716.15,0.00020273,2]
[387397184,1758712245689,-243.40218685,0.00020273,2]
[387397185,1758712245698,-500.0,0.0002029,2]
[387397186,1758712245707,-480.0,0.0002032,2]
[387397187,1758712245717,-480.0,0.0002032,2]
[387397188,1758712245726,-151.0,0.000204,3]
[387397189,1758712245735,-1783.57,0.00020438,2]
[387397190,1758712245744,-1000.0,0.00020468,2]
[387397191,1758712245754,-151.0,0.000205,3]
[387397192,1758712245763,-152.02049467,0.00020535,2]
[387397193,1758712245772,-480.0,0.00020547,2]
[387397194,1758712245781,-480.0,0.00020547,2]
[387397195,1758712245791,-402.93738698,0.00020547,2]
[387397196,1758712245800,-504.27,0.00020547,2]
[387397197,1758712245809,-480.0,0.00020547,2]
[387397198,1758712245818,-480.0,0.00020547,2]
[387397199,1758712245829,-523.65390046,0.00020547,2]
[387397200,1758712245840,-480.0,0.00020547,2]
[387397201,1758712245849,-480.0,0.00020547,2]
[387397202,1758712245859,-480.0,0.00020547,2]
[387397203,1758712245868,-480.0,0.00020547,2]
[387397204,1758712245877,-480.0,0.00020547,2]
[387397205,1758712245887,-480.0,0.00020547,2]
[387397206,1758712245896,-523.97,0.00020547,2]
[387397207,1758712245906,-480.0,0.00020547,2]
[387397208,1758712245915,-480.0,0.00020547,2]
[387397209,1758712245924,-480.0,0.00020547,2]
[387397210,1758712245933,-480.0,0.00020547,2]
[387397211,1758712245943,-2260.39,0.00020547,2]
[387397212,1758712245952,-1901.05,0.00020547,2]
[387397213,1758712245962,-480.0,0.00020547,2]
[387397214,1758712245971,-841.36,0.00020547,2]
[387397215,1758712245980,-480.0,0.00020547,2]
[387397216,1758712245990,-480.0,0.00020547,2]
[387397217,1758712246000,-974.9,0.00020547,2]
[387397218,1758712246010,-3459.54,0.00020547,2]
[387397219,1758712246018,-480.0,0.00020547,2]
[387397220,1758712246028,-480.0,0.00020547,2]
[387397222,1758712246037,-1848.29,0.00020547,2]
[387397223,1758712246047,-480.0,0.00020547,2]
[387397224,1758712246056,-480.0,0.00020547,2]
[387397225,1758712246066,-480.0,0.00020547,2]
[387397226,1758712246075,-480.0,0.00020547,2]
[387397227,1758712246084,-480.0,0.00020547,2]
[387397228,1758712246094,-480.0,0.00020547,2]
[387397229,1758712246103,-312.50812031,0.00020547,2]
[387397230,1758712246112,-498.35,0.00020547,2]
[387397231,1758712246121,-821.99,0.00020547,2]
[387397232,1758712246130,-840.33,0.00020547,2]
[387397233,1758712246140,-815.98,0.00020547,2]
[387397234,1758712246149,-480.0,0.00020547,2]
[387397235,1758712246158,-544.68,0.00020547,2]
[387397236,1758712246168,-932.22,0.00020547,2]
[387397237,1758712246177,-386.24595197,0.00020547,2]
[387397238,1758712246186,-480.0,0.00020547,2]
[387397240,1758712246195,-482.72,0.00020547,2]
[387397242,1758712246204,-405.5850292,0.00020547,2]
[387397244,1758712246214,-480.0,0.00020547,2]
[387397245,1758712246223,-756.16,0.00020547,2]
[387397247,1758712246231,-480.0,0.00020547,2]
[387397248,1758712246240,-480.0,0.00020547,2]
[387397249,1758712246250,-480.0,0.00020547,2]
[387397250,1758712246259,-1726.74,0.00020547,2]
[387397251,1758712246268,-733.22,0.00020547,2]
[387397252,1758712246277,-442.43,0.00020547,2]
[387397253,1758712246287,-716.15,0.00020547,2]
[387397254,1758712246296,-1500.0,0.00020568,2]
[387397256,1758712246306,-500.0,0.00020568,2]
[387397258,1758712246315,-1500.0,0.00020568,2]
[387397259,1758712246323,-1500.0,0.00020568,2]
[387397260,1758712246333,-480.0,0.00020594,2]
[387397261,1758712246342,-480.0,0.00020594,2]
[387397262,1758712246351,-3385.95532957,0.00020689,2]
[387397263,1758712246360,-151.0,0.000207,3]
[387397264,1758712246370,-420.0,0.00020791,2]
[387397265,1758712246379,-337.0,0.00020792,2]
[387397266,1758712246388,-480.0,0.00020821,2]
[387397267,1758712246398,-504.27,0.00020821,2]
[387397269,1758712246408,-480.0,0.00020821,2]
[387397270,1758712246417,-297.99492982,0.00020821,2]
[387397273,1758712246494,-480.0,0.00020821,2]
[387397274,1758712246503,-480.0,0.00020821,2]
[387397275,1758712246513,-480.0,0.00020821,2]
[387397276,1758712246522,-480.0,0.00020821,2]
[387397277,1758712246531,-318.90125969,0.00020821,2]
[387397278,1758712246541,-523.97,0.00020821,2]
[387397279,1758712246550,-480.0,0.00020821,2]
[387397280,1758712246560,-2260.39,0.00020821,2]
[387397281,1758712246569,-1901.05,0.00020821,2]
[387397282,1758712246578,-841.36,0.00020821,2]
[387397283,1758712246588,-480.0,0.00020821,2]
[387397284,1758712246597,-974.9,0.00020821,2]
[387397285,1758712246607,-3459.54,0.00020821,2]
[387397286,1758712246617,-480.0,0.00020821,2]
[387397287,1758712246627,-1848.29,0.00020821,2]
[387397288,1758712246636,-480.0,0.00020821,2]
[387397289,1758712246645,-517.0,0.00020821,2]
[387397290,1758712246654,-480.0,0.00020821,2]
[387397291,1758712246663,-480.0,0.00020821,2]
[387397292,1758712246672,-480.0,0.00020821,2]
[387397293,1758712246682,-480.0,0.00020821,2]
[387397294,1758712246691,-821.99,0.00020821,2]
[387397295,1758712246700,-498.35,0.00020821,2]
[387397296,1758712246710,-840.33,0.00020821,2]
[387397297,1758712246719,-815.98,0.00020821,2]
[387397298,1758712246728,-462.1,0.00020821,2]
[387397299,1758712246738,-544.68,0.00020821,2]
[387397300,1758712246748,-932.22,0.00020821,2]
[387397301,1758712246758,-480.0,0.00020821,2]
[387397302,1758712246767,-756.16,0.00020821,2]
[387397303,1758712246777,-480.0,0.00020821,2]
[387397304,1758712246787,-480.0,0.00020821,2]
[387397305,1758712246796,-1726.74,0.00020821,2]
[387397306,1758712246807,-733.22,0.00020821,2]
[387397307,1758712246816,-716.15,0.00020821,2]
[387397308,1758712246827,-407.22010773,0.0002086,2]
[387397309,1758712246838,-1628.88043092,0.0002086,2]
[387397310,1758712246848,-3664.98096957,0.0002086,2]
[387397311,1758712246857,-6509.00620196,0.0002086,2]
[387397312,1758712246867,-341.83668621,0.0002086,2]
[387397313,1758712246876,-1365.9793981,0.0002086,2]
[387397314,1758712246885,-480.0,0.00020868,2]
[387397315,1758712246895,-480.0,0.00020868,2]
[387397316,1758712246904,-151.0,0.00020883,2]
[387397317,1758712246913,-151.0,0.00020883,2]
[387397318,1758712246923,-151.0,0.00020883,2]
[387397319,1758712246932,-500.0,0.00020883,2]
[387397320,1758712246942,-200.0,0.00020883,2]
[387397321,1758712246951,-500.0,0.00020883,2]
[387397322,1758712246960,-200.0,0.00020883,2]
[387397323,1758712246970,-500.0,0.00020883,2]
[387397324,1758712246979,-200.0,0.00020883,2]
[387397325,1758712246988,-350.0,0.00020883,2]
[387397326,1758712246998,-500.0,0.00020883,2]
[387397327,1758712247008,-200.0,0.00020883,2]
[387397328,1758712247017,-209.40437685,0.00020883,2]
[387397329,1758712247027,-350.0,0.00020883,2]
[387397330,1758712247036,-500.0,0.00020883,2]
[387397331,1758712247045,-200.0,0.00020883,2]
[387397332,1758712247055,-500.0,0.00020883,2]
[387397333,1758712247064,-350.0,0.00020883,2]
[387397334,1758712247073,-200.0,0.00020883,2]
[387397335,1758712247083,-350.0,0.00020883,2]
[387397336,1758712247092,-500.0,0.00020883,2]
[387397337,1758712247101,-256.14491206,0.00020883,2]
[387397338,1758712247110,-350.0,0.00020883,2]
[387397339,1758712247120,-500.0,0.00020883,2]
[387397340,1758712247129,-350.0,0.00020883,2]
[387397341,1758712247138,-500.0,0.00020883,2]
[387397342,1758712247147,-350.0,0.00020883,2]
[387397343,1758712247156,-500.0,0.00020883,2]
[387397344,1758712247165,-500.0,0.00020883,2]
[387397345,1758712247174,-350.0,0.00020883,2]
[387397346,1758712247183,-350.0,0.00020883,2]
[387397347,1758712247193,-343.65648943,0.00020883,2]
[387397348,1758712247202,-500.0,0.0002089,2]
[387397349,1758712247211,-500.0,0.0002089,2]
[387397350,1758712247220,-516.27022145,0.0002089,2]
[387397351,1758712247230,-500.0,0.0002089,2]
[387397352,1758712247239,-500.0,0.0002089,2]
[387397353,1758712247249,-500.0,0.0002089,2]
[387397354,1758712247259,-500.0,0.0002089,2]
[387397355,1758712247268,-500.0,0.0002089,2]
[387397356,1758712247277,-170.39552554,0.0002089,2]
[387397357,1758712247287,-500.0,0.0002089,2]
[387397358,1758712247296,-500.0,0.0002089,2]
[387397359,1758712247306,-1680.0,0.00020892,2]
[387397360,1758712247315,-151.0,0.000209,4]
[387397361,1758712247324,-151.0,0.000209,4]
[387397362,1758712247334,-2502.19694336,0.00020972,2]
[387397363,1758712247343,-160.0,0.00020987,2]
[387397364,1758712247352,-5678.06499655,0.00021,2]
[387397365,1758712247361,-500.0,0.00021,2]
[387397366,1758712247371,-500.0,0.00021,2]
[387397367,1758712247381,-500.0,0.00021,2]
[387397368,1758712247391,-448.69437294,0.00021,2]
[387397369,1758712247401,-500.0,0.00021,2]
[387397370,1758712247410,-500.0,0.00021,2]
[387397371,1758712247419,-500.0,0.00021,2]
[387397372,1758712247431,-500.0,0.00021,2]
[387397373,1758712247441,-500.0,0.00021,2]
[387397374,1758712247451,-500.0,0.00021,2]
[387397375,1758712247460,-500.0,0.00021,2]
[387397376,1758712247469,-500.0,0.00021,2]
[387397377,1758712247479,-501.17606149,0.00021,2]
[387397378,1758712247488,-161.09003437,0.00021,2]
[387397379,1758712247498,-501.74539357,0.00021,2]
[387397380,1758712247507,-529.23636076,0.00021,2]
[387397381,1758712247516,-500.0,0.00021,2]
[387397382,1758712247526,-500.0,0.00021,2]
[387397383,1758712247535,-500.0,0.00021,2]
[387397384,1758712247545,-525.60880324,0.00021,2]
[387397385,1758712247554,-500.0,0.00021,2]
[387397386,1758712247563,-500.0,0.00021,2]
[387397387,1758712247572,-626.34630305,0.00021,2]
[387397388,1758712247581,-500.0,0.00021,2]
[387397389,1758712247591,-500.0,0.00021,2]
[387397390,1758712247600,-500.0,0.00021,2]
[387397391,1758712247610,-500.0,0.00021,2]
[387397392,1758712247619,-500.0,0.00021,2]
[387397393,1758712247629,-500.54082936,0.00021,2]
[387397394,1758712247639,-501.03977974,0.00021,2]
[387397395,1758712247648,-511.97124642,0.00021,2]
[387397396,1758712247657,-500.0,0.00021,2]
[387397397,1758712247667,-500.0,0.00021,2]
[387397398,1758712247677,-500.0,0.00021,2]
[387397399,1758712247686,-3000.0,0.00021,2]
[387397400,1758712247695,-151.0,0.00021,2]
[387397401,1758712247704,-151.0,0.00021,2]
[387397402,1758712247714,-3000.0,0.0002101,2]
[387397403,1758712247723,-3000.0,0.0002102,2]
[387397404,1758712247733,-3000.0,0.0002103,2]
[387397405,1758712247742,-3000.0,0.0002104,2]
[387397406,1758712247751,-3000.0,0.0002105,2]
[387397407,1758712247761,-3000.0,0.0002106,2]
[387397408,1758712247770,-5045.454478,0.0002107,2]
[387397409,1758712247779,-311.68001209,0.00021095,2]
[387397410,1758712247788,-504.27,0.00021095,2]
[387397411,1758712247798,-151.0,0.00021095,2]
[387397412,1758712247807,-151.0,0.00021095,2]
[387397413,1758712247817,-480.0,0.00021095,2]
[387397414,1758712247827,-178.522857,0.00021095,2]
[387397415,1758712247839,-480.0,0.00021095,2]
[387397416,1758712247848,-153.919047,0.00021095,2]
[387397417,1758712247857,-480.0,0.00021095,2]
[387397418,1758712247866,-150.69,0.00021095,2]
[387397419,1758712247875,-523.97,0.00021095,2]
[387397420,1758712247884,-2260.39,0.00021095,2]
[387397421,1758712247894,-1901.05,0.00021095,2]
[387397422,1758712247903,-562.26834109,0.00021095,2]
[387397423,1758712248064,-279.09165891,0.00021095,2]
[387397424,1758712248075,-480.0,0.00021095,2]
[387397425,1758712248085,-974.9,0.00021095,2]
[387397426,1758712248094,-3459.54,0.00021095,2]
[387397427,1758712248103,-480.0,0.00021095,2]
[387397428,1758712248113,-1848.29,0.00021095,2]
[387397429,1758712248123,-480.0,0.00021095,2]
[387397430,1758712248132,-132.17834109,0.00021095,2]
[387397431,1758712248145,-347.82165891,0.00021095,2]
[387397432,1758712248154,-480.0,0.00021095,2]
[387397433,1758712248163,-113.05834149,0.00021095,2]
[387397434,1758712248175,-366.94165851,0.00021095,2]
[387397435,1758712248185,-480.0,0.00021095,2]
[387397436,1758712248195,-821.99,0.00021095,2]
[387397437,1758712248204,-498.35,0.00021095,2]
[387397438,1758712248214,-840.33,0.00021095,2]
[387397439,1758712248224,-815.98,0.00021095,2]
[387397440,1758712248234,-544.68,0.00021095,2]
[387397441,1758712248243,-932.22,0.00021095,2]
[387397442,1758712248254,-480.0,0.00021095,2]
[387397443,1758712248264,-756.16,0.00021095,2]
[387397444,1758712248273,-480.0,0.00021095,2]
[387397445,1758712248283,-480.0,0.00021095,2]
[387397446,1758712248292,-1726.74,0.00021095,2]
[387397447,1758712248302,-733.22,0.00021095,2]
[387397448,1758712248312,-716.15,0.00021095,2]
[387397449,1758712248322,-151.0,0.000211,3]
[387397450,1758712248331,-2000.0,0.00021116,2]
[387397451,1758712248341,-1500.0,0.00021116,2]
[387397452,1758712248351,-500.0,0.00021116,2]
[387397453,1758712248361,-151.0,0.00021142,2]
[387397454,1758712248370,-151.0,0.00021142,2]
[387397455,1758712248380,-480.0,0.00021142,2]
[387397456,1758712248389,-151.0,0.000212,3]
[387397457,1758712248399,-2390.83822196,0.00021253,2]
[387397458,1758712250164,-0.03080522,0.00019078,2]
[387397459,1758712250180,-317.1806945,0.00019078,2]
[387397460,1758712250190,-1328.1,0.00019726,2]
[387397461,1758712250199,-1328.1,0.0002,2]
[387397462,1758712250209,-394.5326134,0.00020273,2]
[387397463,1758712250449,-5000.0,0.00018886,2]
[387397464,1758712250459,-317.2114997,0.00019215,2]
[387397465,1758712250469,-317.2114997,0.00019352,2]
[387397466,1758712250478,-933.5673866,0.00020273,2]
[387397467,1758712250487,-1328.1,0.00020547,2]
[387397468,1758712250497,-1328.1,0.00020821,2]
[387397469,1758712250506,-1328.1,0.00021095,2]
[387397470,1758712250515,-3622.61844335,0.00021253,2]
[387397471,1758712250524,-3069.0585586,0.00021253,2]
[387397472,1758712250533,-9181.58278061,0.00021307,2]
[387397473,1758712250542,-151.0,0.00021307,2]
[387397474,1758712250551,-500.0,0.00021358,2]
[387397475,1758712250561,-2675.36,0.00021367,2]
[387397476,1758712250570,-504.27,0.00021369,2]
[387397477,1758712250579,-480.0,0.00021369,2]
[387397478,1758712250588,-480.0,0.00021369,2]
[387397479,1758712250597,-480.0,0.00021369,2]
[387397480,1758712250606,-523.97,0.00021369,2]
[387397481,1758712250616,-841.36,0.00021369,2]
[387397482,1758712250625,-203.51,0.00021369,2]
[387397483,1758712250634,-974.9,0.00021369,2]
[387397484,1758712250643,-480.0,0.00021369,2]
[387397485,1758712250653,-1848.29,0.00021369,2]
[387397486,1758712250662,-480.0,0.00021369,2]
[387397487,1758712250671,-480.0,0.00021369,2]
[387397488,1758712250680,-480.0,0.00021369,2]
[387397489,1758712250690,-480.0,0.00021369,2]
[387397490,1758712250699,-480.0,0.00021369,2]
[387397491,1758712250708,-821.99,0.00021369,2]
[387397492,1758712250717,-498.35,0.00021369,2]
[387397493,1758712250727,-840.33,0.00021369,2]
[387397494,1758712250736,-815.98,0.00021369,2]
[387397495,1758712250745,-544.68,0.00021369,2]
[387397496,1758712250755,-932.22,0.00021369,2]
[387397497,1758712250764,-480.0,0.00021369,2]
[387397498,1758712250773,-756.16,0.00021369,2]
[387397499,1758712250782,-480.0,0.00021369,2]
[387397500,1758712250791,-480.0,0.00021369,2]
[387397501,1758712250799,-1726.74,0.00021369,2]
[387397502,1758712250808,-733.22,0.00021369,2]
[387397503,1758712250817,-716.15,0.00021369,2]
[387397504,1758712250827,-500.0,0.00021372,2]
[387397505,1758712250838,-500.0,0.00021372,2]
[387397506,1758712250847,-623.41079606,0.00021372,2]
[387397507,1758712250856,-501.96845644,0.00021379,2]
[387397508,1758712250865,-190.60463269,0.00021379,2]
[387397509,1758712250874,-592.2111529,0.00021379,2]
[387397510,1758712250884,-500.0,0.00021379,2]
[387397511,1758712250892,-500.0,0.00021392,2]
[387397512,1758712250902,-500.0,0.00021392,2]
[387397513,1758712250911,-151.0,0.000214,3]
[387397514,1758712250920,-500.0,0.00021408,2]
[387397515,1758712250929,-167.94622083,0.00021408,2]
[387397516,1758712250939,-500.0,0.00021408,2]
[387397517,1758712250948,-480.0,0.00021416,2]
[387397518,1758712250957,-509.53525357,0.00021438,2]
[387397519,1758712250966,-315.43076181,0.00021438,2]
[387397520,1758712250975,-1000.0,0.00021438,2]
[387397521,1758712250985,-1000.0,0.00021438,2]
[387397522,1758712250994,-262.56697366,0.00021474,2]
[387397523,1758712251004,-2159.0,0.00021482,2]
[387397524,1758712251015,-634.0,0.00021482,2]
[387397525,1758712251091,-151.0,0.000215,3]
[387397526,1758712251101,-500.0,0.00021524,2]
[387397527,1758712251110,-500.0,0.00021524,2]
[387397528,1758712251119,-260.0,0.00021535,2]
[387397529,1758712251129,-500.0,0.00021538,2]
[387397530,1758712251138,-500.0,0.00021541,2]
[387397531,1758712251150,-1000.0,0.00021548,2]
[387397532,1758712251160,-475.39526004,0.00021548,2]
[387397533,1758712251170,-478.78102613,0.00021548,2]
[387397534,1758712251179,-500.0,0.00021548,2]
[387397535,1758712251188,-1000.0,0.00021548,2]
[387397536,1758712251197,-1000.0,0.00021548,2]
[387397537,1758712251207,-1000.0,0.00021548,2]
[387397538,1758712251216,-259.90032932,0.00021548,2]
[387397539,1758712251226,-380.64569965,0.00021548,2]
[387397540,1758712251235,-1007.08757954,0.00021548,2]
[387397541,1758712251245,-1000.0,0.00021548,2]
[387397542,1758712251256,-1000.0,0.00021548,2]
[387397543,1758712251265,-1000.0,0.00021548,2]
[387397544,1758712251276,-500.0,0.00021561,2]
[387397545,1758712251286,-500.0,0.00021561,2]
[387397546,1758712251296,-477.21465186,0.00021561,2]
[387397547,1758712251311,-22.78534814,0.00021561,2]
[387397548,1758712251321,-500.0,0.00021561,2]
[387397549,1758712251331,-500.0,0.00021563,2]
[387397550,1758712251340,-500.98096882,0.00021571,2]
[387397551,1758712251349,-502.30335504,0.00021571,2]
[387397552,1758712251359,-502.75021354,0.00021574,2]
[387397553,1758712251368,-500.57949311,0.00021574,2]
[387397554,1758712251377,-500.0,0.00021574,2]
[387397555,1758712251387,-504.27,0.00021643,2]
[387397556,1758712251396,-560.25,0.00021643,2]
[387397557,1758712251406,-480.0,0.00021643,2]
[387397558,1758712251415,-165.587,0.00021643,2]
[387397559,1758712251425,-480.0,0.00021643,2]
[387397560,1758712251435,-523.97,0.00021643,2]
[387397561,1758712251444,-841.36,0.00021643,2]
[387397562,1758712251453,-974.9,0.00021643,2]
[387397563,1758712251462,-480.0,0.00021643,2]
[387397564,1758712251471,-1848.29,0.00021643,2]
[387397565,1758712251481,-480.0,0.00021643,2]
[387397566,1758712251490,-480.0,0.00021643,2]
[387397567,1758712251500,-480.0,0.00021643,2]
[387397568,1758712251509,-480.0,0.00021643,2]
[387397569,1758712251519,-480.0,0.00021643,2]
[387397570,1758712251528,-151.0,0.00021643,2]
[387397571,1758712251537,-821.99,0.00021643,2]
[387397572,1758712251547,-498.35,0.00021643,2]
[387397573,1758712251556,-840.33,0.00021643,2]
[387397574,1758712251565,-815.98,0.00021643,2]
[387397575,1758712251574,-544.68,0.00021643,2]
[387397576,1758712251584,-932.22,0.00021643,2]
[387397577,1758712251594,-300.69,0.00021643,2]
[387397578,1758712251603,-756.16,0.00021643,2]
[387397579,1758712251613,-480.0,0.00021643,2]
[387397580,1758712251623,-480.0,0.00021643,2]
[387397581,1758712251633,-1726.74,0.00021643,2]
[387397582,1758712251644,-733.22,0.00021643,2]
[387397583,1758712251656,-716.15,0.00021643,2]
[387397584,1758712251665,-2500.0,0.00021664,2]
[387397585,1758712251674,-480.0,0.0002169,2]
[387397586,1758712251684,-150.0,0.00021753,2]
[387397587,1758712251693,-210.39,0.00021753,2]
[387397588,1758712251702,-151.0,0.000218,3]
[387397589,1758712251711,-151.0,0.00021822,2]
[387397590,1758712251720,-151.0,0.00021822,2]
[387397591,1758712251730,-532.2324375,0.00021822,2]
[387397592,1758712251739,-233.62170814,0.00021822,2]
[387397593,1758712251748,-417.15472785,0.00021823,2]
[387397594,1758712251757,-160.0,0.00021823,2]
[387397595,1758712251767,-160.0,0.00021823,2]
[387397596,1758712251776,-160.0,0.00021823,2]
[387397597,1758712251785,-160.0,0.00021823,2]
[387397598,1758712251795,-160.0,0.00021823,2]
[387397599,1758712251807,-160.0,0.00021823,2]
[387397600,1758712251816,-504.27,0.00021917,2]
[387397601,1758712251825,-498.26294938,0.00021917,2]
[387397602,1758712251838,-480.0,0.00021917,2]
[387397603,1758712251848,-523.97,0.00021917,2]
[387397604,1758712251857,-841.36,0.00021917,2]
[387397605,1758712251867,-974.9,0.00021917,2]
[387397606,1758712251877,-480.0,0.00021917,2]
[387397607,1758712251886,-1848.29,0.00021917,2]
[387397608,1758712251897,-480.0,0.00021917,2]
[387397609,1758712251906,-480.0,0.00021917,2]
[387397610,1758712251915,-480.0,0.00021917,2]
[387397611,1758712251925,-573.69,0.00021917,2]
[387397612,1758712251935,-480.0,0.00021917,2]
[387397613,1758712251943,-821.99,0.00021917,2]
[387397614,1758712251953,-498.35,0.00021917,2]
[387397615,1758712251962,-840.33,0.00021917,2]
[387397616,1758712251971,-815.98,0.00021917,2]
[387397617,1758712251980,-544.68,0.00021917,2]
[387397618,1758712251989,-932.22,0.00021917,2]
[387397619,1758712251998,-756.16,0.00021917,2]
[387397620,1758712252007,-480.0,0.00021917,2]
[387397621,1758712252016,-480.0,0.00021917,2]
[387397622,1758712252026,-1726.74,0.00021917,2]
[387397623,1758712252035,-733.22,0.00021917,2]
[387397624,1758712252044,-716.15,0.00021917,2]
[387397625,1758712252053,-153.0,0.00021918,2]
[387397626,1758712252063,-153.0,0.00021918,2]
[387397627,1758712252072,-116.78082197,0.00021918,2]
[387397628,1758712252086,-36.21917803,0.00021918,2]
[387397629,1758712252094,-153.0,0.00021918,2]
[387397630,1758712252103,-153.0,0.00021918,2]
[387397631,1758712252112,-153.0,0.00021918,2]
[387397632,1758712252121,-153.0,0.00021918,2]
[387397633,1758712252130,-153.0,0.00021918,2]
[387397634,1758712252138,-153.0,0.00021918,2]
[387397635,1758712252147,-151.0,0.00021918,2]
[387397636,1758712252160,-203.976724,0.00021918,2]
[387397637,1758712252168,-203.976724,0.00021918,2]
[387397638,1758712252176,-203.976724,0.00021918,2]
[387397639,1758712252184,-203.976724,0.00021918,2]
[387397640,1758712252193,-152.370541,0.00021918,2]
[387397641,1758712252202,-151.0,0.00021918,2]
[387397642,1758712252212,-151.0,0.00021918,2]
[387397643,1758712252222,-151.0,0.00021918,2]
[387397644,1758712252231,-151.0,0.00021918,2]
[387397645,1758712252240,-151.0,0.00021918,2]
[387397646,1758712252251,-151.0,0.00021918,2]
[387397647,1758712252260,-151.0,0.00021918,2]
[387397648,1758712252269,-151.0,0.00021918,2]